[Event "Early-Titled-Tuesday-Blitz-April-23-2024"]
[Site "Chess.com"]
[Date "2024.04.23"]
[Round "7"]
[White "Slovineanu"]
[Black "AlexTruskavetsky"]
[Result "0-1"]
[WhiteElo "2497"]
[BlackElo "2686"]
[TimeControl "180+1"]
[EndTime "9:19:38 PDT"]
[Termination "AlexTruskavetsky won by resignation"]

1. d4 {[%clk 0:03:00.9]} 1... Nf6 {[%clk 0:03:00]} 2. Nf3 {[%clk 0:03:01]} 2...
g6 {[%clk 0:03:00.1]} 3. Nbd2 {[%clk 0:03:00.7]} 3... Bg7 {[%clk 0:02:59.9]} 4.
e4 {[%clk 0:03:01.1]} 4... d6 {[%clk 0:02:59.9]} 5. Bb5+ {[%clk 0:03:01.6]} 5...
c6 {[%clk 0:02:59.4]} 6. Bd3 {[%clk 0:03:01.8]} 6... O-O {[%clk 0:02:58.3]} 7.
O-O {[%clk 0:03:02.4]} 7... Nbd7 {[%clk 0:02:55.9]} 8. Re1 {[%clk 0:03:01.8]}
8... e5 {[%clk 0:02:55.8]} 9. dxe5 {[%clk 0:03:01.3]} 9... dxe5 {[%clk
0:02:55.8]} 10. a4 {[%clk 0:03:01]} 10... Qc7 {[%clk 0:02:53.1]} 11. b3 {[%clk
0:02:55]} 11... Rd8 {[%clk 0:02:52.6]} 12. Qe2 {[%clk 0:02:52.5]} 12... Nc5
{[%clk 0:02:51.8]} 13. Bc4 {[%clk 0:02:50.1]} 13... Nh5 {[%clk 0:02:48.6]} 14.
g3 {[%clk 0:02:49.9]} 14... Ne6 {[%clk 0:02:45.3]} 15. Bxe6 {[%clk 0:02:42]}
15... Bxe6 {[%clk 0:02:46.2]} 16. Bb2 {[%clk 0:02:40.8]} 16... Rab8 {[%clk
0:02:39.7]} 17. Nc4 {[%clk 0:02:35.2]} 17... f6 {[%clk 0:02:38.7]} 18. Red1
{[%clk 0:02:30.1]} 18... Bf8 {[%clk 0:02:28.2]} 19. a5 {[%clk 0:02:12.9]} 19...
b5 {[%clk 0:02:23.3]} 20. axb6 {[%clk 0:02:12.1]} 20... axb6 {[%clk 0:02:24.2]}
21. Bc3 {[%clk 0:01:54.8]} 21... Ng7 {[%clk 0:02:18.3]} 22. Bd2 {[%clk
0:01:38.2]} 22... Rd7 {[%clk 0:02:02]} 23. Be3 {[%clk 0:01:36]} 23... b5 {[%clk
0:02:01.9]} 24. Rxd7 {[%clk 0:01:28.4]} 24... Bxd7 {[%clk 0:01:58.8]} 25. Ncd2
{[%clk 0:01:09.7]} 25... Bg4 {[%clk 0:01:55.7]} 26. Kg2 {[%clk 0:01:08.9]} 26...
Qd7 {[%clk 0:01:54.6]} 27. Ra7 {[%clk 0:01:04.4]} 27... Rb7 {[%clk 0:01:50.8]}
28. Rxb7 {[%clk 0:01:03.3]} 28... Qxb7 {[%clk 0:01:51.7]} 29. h3 {[%clk
0:01:03.8]} 29... Be6 {[%clk 0:01:51.4]} 30. Qd3 {[%clk 0:00:57.6]} 30... Ne8
{[%clk 0:01:48.8]} 31. c3 {[%clk 0:00:57.1]} 31... Qd7 {[%clk 0:01:45.3]} 32.
Qxd7 {[%clk 0:00:56]} 32... Bxd7 {[%clk 0:01:46.2]} 33. b4 {[%clk 0:00:55.7]}
33... Be6 {[%clk 0:01:45.7]} 34. h4 {[%clk 0:00:49.9]} 34... Kf7 {[%clk
0:01:45.4]} 35. Ne1 {[%clk 0:00:49.3]} 35... h5 {[%clk 0:01:42.6]} 36. Nd3
{[%clk 0:00:49.1]} 36... Nc7 {[%clk 0:01:42]} 37. Bc5 {[%clk 0:00:46.1]} 37...
Bh6 {[%clk 0:01:41]} 38. f4 {[%clk 0:00:39.7]} 38... exf4 {[%clk 0:01:37.3]} 39.
gxf4 {[%clk 0:00:34.1]} 39... Ba2 {[%clk 0:01:36.9]} 40. Kf3 {[%clk 0:00:31.4]}
40... Ne6 {[%clk 0:01:36.7]} 41. Bd6 {[%clk 0:00:28.7]} 41... g5 {[%clk
0:01:27.1]} 42. hxg5 {[%clk 0:00:21]} 42... fxg5 {[%clk 0:01:26.9]} 43. f5
{[%clk 0:00:21]} 43... g4+ {[%clk 0:01:26.8]} 44. Kg3 {[%clk 0:00:19.2]} 44...
Bxd2 {[%clk 0:01:25.9]} 45. Ne5+ {[%clk 0:00:18]} 45... Kf6 {[%clk 0:01:24.6]}
46. Nd7+ {[%clk 0:00:18.2]} 46... Kg5 {[%clk 0:01:21.9]} 47. fxe6 {[%clk
0:00:17.5]} 47... h4+ {[%clk 0:01:20.2]} 48. Kg2 {[%clk 0:00:17.5]} 48... Bxe6
{[%clk 0:01:19.7]} 49. Be7+ {[%clk 0:00:12.2]} 49... Kf4 {[%clk 0:01:19.4]} 50.
Nc5 {[%clk 0:00:11.2]} 50... h3+ {[%clk 0:01:18.8]} 51. Kh2 {[%clk 0:00:07.7]}
51... g3+ {[%clk 0:01:17.9]} 52. Kg1 {[%clk 0:00:07.2]} 52... Be3+ {[%clk
0:01:17.2]} 0-1

[Event "Early-Titled-Tuesday-Blitz-April-23-2024"]
[Site "Chess.com"]
[Date "2024.04.23"]
[Round "7"]
[White "Fantastic_Power"]
[Black "GlavkonVVS"]
[Result "0-1"]
[WhiteElo "2736"]
[BlackElo "2623"]
[TimeControl "180+1"]
[EndTime "9:19:39 PDT"]
[Termination "GlavkonVVS won by checkmate"]

1. e4 {[%clk 0:03:00.9]} 1... Nf6 {[%clk 0:02:59.5]} 2. e5 {[%clk 0:02:55.4]}
2... Nd5 {[%clk 0:02:59.7]} 3. d4 {[%clk 0:02:56.3]} 3... d6 {[%clk 0:02:59.6]}
4. c4 {[%clk 0:02:55.5]} 4... Nb6 {[%clk 0:02:59.9]} 5. f4 {[%clk 0:02:56.1]}
5... dxe5 {[%clk 0:02:59.6]} 6. fxe5 {[%clk 0:02:57]} 6... c5 {[%clk 0:03:00.1]}
7. d5 {[%clk 0:02:56.8]} 7... g6 {[%clk 0:03:00.3]} 8. Nc3 {[%clk 0:02:56.3]}
8... Bg7 {[%clk 0:03:00.5]} 9. Bf4 {[%clk 0:02:54.9]} 9... O-O {[%clk
0:02:59.9]} 10. Nf3 {[%clk 0:02:49.6]} 10... Bg4 {[%clk 0:02:59.4]} 11. h3
{[%clk 0:02:48.9]} 11... Bxf3 {[%clk 0:02:59.2]} 12. Qxf3 {[%clk 0:02:49.8]}
12... e6 {[%clk 0:02:59.6]} 13. O-O-O {[%clk 0:02:46.1]} 13... exd5 {[%clk
0:02:57.2]} 14. cxd5 {[%clk 0:02:47]} 14... N8d7 {[%clk 0:02:52.2]} 15. Qg3
{[%clk 0:02:40.2]} 15... Re8 {[%clk 0:02:48.6]} 16. e6 {[%clk 0:01:38.1]} 16...
fxe6 {[%clk 0:02:48.2]} 17. dxe6 {[%clk 0:01:39]} 17... Rxe6 {[%clk 0:02:48.7]}
18. Be2 {[%clk 0:01:34.9]} 18... Qe7 {[%clk 0:01:57.9]} 19. Bg4 {[%clk
0:01:34.4]} 19... Rc6 {[%clk 0:01:38.9]} 20. Rhe1 {[%clk 0:01:31.4]} 20... Qf7
{[%clk 0:01:38.2]} 21. Bd6 {[%clk 0:01:18.6]} 21... Re8 {[%clk 0:01:33.3]} 22.
Rxe8+ {[%clk 0:01:11.6]} 22... Qxe8 {[%clk 0:01:33.4]} 23. Re1 {[%clk
0:01:11.8]} 23... Qd8 {[%clk 0:01:17.7]} 24. Bf3 {[%clk 0:00:59.5]} 24... Rxd6
{[%clk 0:01:03.5]} 25. Qxd6 {[%clk 0:00:59]} 25... Qg5+ {[%clk 0:00:59.6]} 26.
Kc2 {[%clk 0:00:49.3]} 26... h5 {[%clk 0:00:59.1]} 27. Bxb7 {[%clk 0:00:35.5]}
27... Ne5 {[%clk 0:00:56.3]} 28. Be4 {[%clk 0:00:27.4]} 28... c4 {[%clk
0:00:55.2]} 29. a4 {[%clk 0:00:18.8]} 29... Qg3 {[%clk 0:00:52.3]} 30. Re2
{[%clk 0:00:16.9]} 30... Kh7 {[%clk 0:00:48.9]} 31. a5 {[%clk 0:00:15.1]} 31...
Nbd7 {[%clk 0:00:49]} 32. Rd2 {[%clk 0:00:07.1]} 32... Nf6 {[%clk 0:00:48.6]}
33. Kb1 {[%clk 0:00:03.1]} 33... Qf4 {[%clk 0:00:47.6]} 34. Re2 {[%clk 0:00:03]}
34... Qg5 {[%clk 0:00:45.7]} 35. Bc2 {[%clk 0:00:03]} 35... Nfd7 {[%clk
0:00:43.4]} 36. Qe6 {[%clk 0:00:03]} 36... Nc5 {[%clk 0:00:42.8]} 37. Qd5 {[%clk
0:00:03.3]} 37... Ncd3 {[%clk 0:00:42.9]} 38. Rd2 {[%clk 0:00:01.2]} 38... Qxd2
{[%clk 0:00:42.3]} 39. Ne4 {[%clk 0:00:01.8]} 39... Qc1+ {[%clk 0:00:42]} 40.
Ka2 {[%clk 0:00:01.7]} 40... Qxb2# {[%clk 0:00:42.9]} 0-1

[Event "Early-Titled-Tuesday-Blitz-April-23-2024"]
[Site "Chess.com"]
[Date "2024.04.23"]
[Round "7"]
[White "Kotofeyca"]
[Black "wqws"]
[Result "1-0"]
[WhiteElo "2498"]
[BlackElo "2691"]
[TimeControl "180+1"]
[EndTime "9:19:41 PDT"]
[Termination "Kotofeyca won by resignation"]

1. d4 {[%clk 0:03:00.9]} 1... Nf6 {[%clk 0:02:57.8]} 2. c4 {[%clk 0:03:01.1]}
2... g6 {[%clk 0:02:58.2]} 3. f3 {[%clk 0:03:01]} 3... Bg7 {[%clk 0:02:58.6]} 4.
e4 {[%clk 0:03:01.4]} 4... d6 {[%clk 0:02:57.7]} 5. Nc3 {[%clk 0:03:01.9]} 5...
O-O {[%clk 0:02:57.8]} 6. Be3 {[%clk 0:03:02.5]} 6... c5 {[%clk 0:02:57.7]} 7.
dxc5 {[%clk 0:03:02.1]} 7... dxc5 {[%clk 0:02:48.4]} 8. Qxd8 {[%clk 0:03:03]}
8... Rxd8 {[%clk 0:02:48]} 9. Bxc5 {[%clk 0:03:03.9]} 9... Nc6 {[%clk
0:02:47.8]} 10. Nd5 {[%clk 0:03:04.4]} 10... Nxd5 {[%clk 0:02:36.9]} 11. cxd5
{[%clk 0:03:05.3]} 11... Bxb2 {[%clk 0:02:37.2]} 12. Rb1 {[%clk 0:03:02.2]}
12... Bd4 {[%clk 0:02:36.3]} 13. Ba3 {[%clk 0:02:38.2]} 13... Bc3+ {[%clk
0:02:17.9]} 14. Kf2 {[%clk 0:02:26.7]} 14... Bd4+ {[%clk 0:02:17.1]} 15. Kg3
{[%clk 0:02:20.8]} 15... Ne5 {[%clk 0:02:16.5]} 16. Bxe7 {[%clk 0:02:18.3]}
16... Re8 {[%clk 0:02:16]} 17. Ba3 {[%clk 0:02:03.7]} 17... h5 {[%clk
0:02:15.8]} 18. h4 {[%clk 0:01:52.1]} 18... f5 {[%clk 0:02:09.3]} 19. Bb5 {[%clk
0:01:47.7]} 19... Bd7 {[%clk 0:01:36.2]} 20. Ne2 {[%clk 0:01:46.4]} 20... Bxb5
{[%clk 0:01:25.7]} 21. Nxd4 {[%clk 0:01:31.5]} 21... Bd3 {[%clk 0:01:22.8]} 22.
Rxb7 {[%clk 0:01:29.5]} 22... fxe4 {[%clk 0:01:21.8]} 23. Ne6 {[%clk 0:01:11]}
23... Nc4 {[%clk 0:01:21.7]} 24. Bc5 {[%clk 0:01:00.3]} 24... Ne5 {[%clk
0:00:45.8]} 25. Bd4 {[%clk 0:00:54.3]} 25... Nf7 {[%clk 0:00:45.9]} 26. Rc1
{[%clk 0:00:24]} 26... Rac8 {[%clk 0:00:40.3]} 27. Rxc8 {[%clk 0:00:20.6]} 27...
Rxc8 {[%clk 0:00:41.2]} 28. fxe4 {[%clk 0:00:20.7]} 28... Bxe4 {[%clk
0:00:40.6]} 29. Rxf7 {[%clk 0:00:19.8]} 29... Kxf7 {[%clk 0:00:25.7]} 30. Ng5+
{[%clk 0:00:19.8]} 30... Ke7 {[%clk 0:00:22.3]} 31. Nxe4 {[%clk 0:00:17]} 31...
Rc2 {[%clk 0:00:22.9]} 32. Kf4 {[%clk 0:00:15.9]} 32... Rxg2 {[%clk 0:00:22.2]}
33. Ke5 {[%clk 0:00:15.9]} 33... Rxa2 {[%clk 0:00:19.6]} 34. d6+ {[%clk
0:00:16.8]} 34... Kd8 {[%clk 0:00:19]} 35. Ke6 {[%clk 0:00:15.4]} 35... Re2
{[%clk 0:00:18.9]} 36. Bf6+ {[%clk 0:00:15.5]} 1-0

[Event "Early-Titled-Tuesday-Blitz-April-23-2024"]
[Site "Chess.com"]
[Date "2024.04.23"]
[Round "7"]
[White "MarlonJodar"]
[Black "AsselLesbekova"]
[Result "0-1"]
[WhiteElo "2288"]
[BlackElo "2444"]
[TimeControl "180+1"]
[EndTime "9:19:42 PDT"]
[Termination "AsselLesbekova won by checkmate"]

1. e4 {[%clk 0:03:00.9]} 1... e5 {[%clk 0:02:59.9]} 2. Nf3 {[%clk 0:03:00.7]}
2... Nf6 {[%clk 0:03:00.5]} 3. Nxe5 {[%clk 0:02:58.2]} 3... Nxe4 {[%clk
0:03:00.2]} 4. Qe2 {[%clk 0:02:56.9]} 4... Qe7 {[%clk 0:03:00.5]} 5. Qxe4 {[%clk
0:02:55.2]} 5... d6 {[%clk 0:03:01.1]} 6. d4 {[%clk 0:02:55.7]} 6... dxe5 {[%clk
0:03:01.5]} 7. Qxe5 {[%clk 0:02:55.5]} 7... Qxe5+ {[%clk 0:03:01.4]} 8. dxe5
{[%clk 0:02:56.4]} 8... Bf5 {[%clk 0:03:01.7]} 9. Bb5+ {[%clk 0:02:51.2]} 9...
Nc6 {[%clk 0:02:58.2]} 10. Bf4 {[%clk 0:02:36.4]} 10... O-O-O {[%clk 0:02:53.6]}
11. Nc3 {[%clk 0:02:35.3]} 11... Nd4 {[%clk 0:02:49.8]} 12. O-O-O {[%clk
0:02:28.3]} 12... c6 {[%clk 0:02:35]} 13. Bd3 {[%clk 0:02:24.5]} 13... Bxd3
{[%clk 0:02:32.6]} 14. Rxd3 {[%clk 0:02:25.4]} 14... Bb4 {[%clk 0:02:28]} 15.
Re1 {[%clk 0:02:03.6]} 15... h6 {[%clk 0:02:23.5]} 16. Re4 {[%clk 0:01:55.7]}
16... Bxc3 {[%clk 0:02:18.1]} 17. Rxc3 {[%clk 0:01:43.2]} 17... Ne6 {[%clk
0:02:14.6]} 18. Be3 {[%clk 0:01:42]} 18... Kb8 {[%clk 0:02:12.3]} 19. Ra4 {[%clk
0:01:35.6]} 19... a6 {[%clk 0:02:09.1]} 20. Rb3 {[%clk 0:01:35.3]} 20... Kc8
{[%clk 0:02:05.6]} 21. f4 {[%clk 0:01:09.2]} 21... g6 {[%clk 0:02:04.1]} 22. g4
{[%clk 0:01:02.1]} 22... h5 {[%clk 0:01:50.2]} 23. f5 {[%clk 0:01:01.1]} 23...
gxf5 {[%clk 0:01:49.6]} 24. gxf5 {[%clk 0:01:02]} 24... Nc7 {[%clk 0:01:47.1]}
25. Rd4 {[%clk 0:00:53.5]} 25... Nd5 {[%clk 0:01:43.2]} 26. Bg5 {[%clk
0:00:50.9]} 26... Rdg8 {[%clk 0:01:42]} 27. h4 {[%clk 0:00:50.9]} 27... Re8
{[%clk 0:01:40.5]} 28. c4 {[%clk 0:00:43.8]} 28... Ne7 {[%clk 0:01:34.1]} 29.
Rf3 {[%clk 0:00:39.5]} 29... c5 {[%clk 0:01:32.1]} 30. Rd6 {[%clk 0:00:32]}
30... Nc6 {[%clk 0:01:32.1]} 31. Bf6 {[%clk 0:00:31.9]} 31... Rhg8 {[%clk
0:01:30.2]} 32. Re3 {[%clk 0:00:29.9]} 32... Nd4 {[%clk 0:01:22]} 33. b4 {[%clk
0:00:27]} 33... Nxf5 {[%clk 0:01:19.3]} 34. Red3 {[%clk 0:00:24]} 34... Nxd6
{[%clk 0:01:16.5]} 35. exd6 {[%clk 0:00:22.7]} 35... Kd7 {[%clk 0:01:12.9]} 36.
bxc5 {[%clk 0:00:22.7]} 36... Rg4 {[%clk 0:01:09.8]} 37. Rd5 {[%clk 0:00:16.8]}
37... Rxc4+ {[%clk 0:01:07.9]} 38. Kd2 {[%clk 0:00:13.3]} 38... Rc8 {[%clk
0:00:58.8]} 39. Rxh5 {[%clk 0:00:05.7]} 39... R8xc5 {[%clk 0:00:58]} 40. Rh7
{[%clk 0:00:05.7]} 40... Ke6 {[%clk 0:00:54.9]} 41. Be7 {[%clk 0:00:04.1]} 41...
Rd5+ {[%clk 0:00:53.4]} 42. Ke3 {[%clk 0:00:04.2]} 42... Rc3+ {[%clk 0:00:53.4]}
43. Kf4 {[%clk 0:00:02.5]} 43... f6 {[%clk 0:00:49]} 44. Rh6 {[%clk 0:00:01.8]}
44... Rd4# {[%clk 0:00:48.9]} 0-1

[Event "Early-Titled-Tuesday-Blitz-April-23-2024"]
[Site "Chess.com"]
[Date "2024.04.23"]
[Round "7"]
[White "Kushch_Nikolai"]
[Black "Boxerandchessplayer"]
[Result "0-1"]
[WhiteElo "2379"]
[BlackElo "2231"]
[TimeControl "180+1"]
[EndTime "9:19:44 PDT"]
[Termination "Boxerandchessplayer won by resignation"]

1. Nf3 {[%clk 0:03:00.9]} 1... e6 {[%clk 0:03:00.9]} 2. c4 {[%clk 0:02:59.9]}
2... d5 {[%clk 0:03:01]} 3. d4 {[%clk 0:02:58.6]} 3... c6 {[%clk 0:02:58.7]} 4.
e3 {[%clk 0:02:56.2]} 4... Nf6 {[%clk 0:02:57.7]} 5. Nc3 {[%clk 0:02:55.9]} 5...
Nbd7 {[%clk 0:02:57.9]} 6. Qc2 {[%clk 0:02:56.2]} 6... Be7 {[%clk 0:02:57.7]} 7.
Bd3 {[%clk 0:02:56.3]} 7... O-O {[%clk 0:02:58.2]} 8. O-O {[%clk 0:02:56.4]}
8... dxc4 {[%clk 0:02:56]} 9. Bxc4 {[%clk 0:02:56.2]} 9... b5 {[%clk 0:02:56.6]}
10. Bb3 {[%clk 0:02:56.2]} 10... Bb7 {[%clk 0:02:56.6]} 11. e4 {[%clk
0:02:53.5]} 11... a6 {[%clk 0:02:55.3]} 12. e5 {[%clk 0:02:49.9]} 12... Nd5
{[%clk 0:02:54.4]} 13. Ne4 {[%clk 0:02:48.3]} 13... c5 {[%clk 0:02:44.7]} 14.
dxc5 {[%clk 0:02:36.6]} 14... Rc8 {[%clk 0:02:43.1]} 15. Bg5 {[%clk 0:02:32.1]}
15... Nxc5 {[%clk 0:02:04]} 16. Nxc5 {[%clk 0:02:22.7]} 16... Bxg5 {[%clk
0:01:59.3]} 17. Bxd5 {[%clk 0:02:11]} 17... Bxd5 {[%clk 0:01:57]} 18. b4 {[%clk
0:01:45.7]} 18... Be7 {[%clk 0:01:48.9]} 19. Rfd1 {[%clk 0:01:36.2]} 19... Qc7
{[%clk 0:01:28.3]} 20. Rac1 {[%clk 0:01:34.3]} 20... Bxf3 {[%clk 0:01:24.5]} 21.
gxf3 {[%clk 0:01:33.7]} 21... Qxe5 {[%clk 0:01:24.3]} 22. Qe4 {[%clk 0:01:31.1]}
22... Qxe4 {[%clk 0:01:14.6]} 23. fxe4 {[%clk 0:01:30.1]} 23... Bxc5 {[%clk
0:01:15.1]} 24. bxc5 {[%clk 0:01:29.3]} 24... Rc6 {[%clk 0:01:14.2]} 25. Rd6
{[%clk 0:01:27.5]} 25... Rfc8 {[%clk 0:01:10.5]} 26. Rxc6 {[%clk 0:01:21.4]}
26... Rxc6 {[%clk 0:01:07.4]} 27. f4 {[%clk 0:01:21.4]} 27... Kf8 {[%clk
0:01:06.5]} 28. Kf2 {[%clk 0:01:21.7]} 28... Ke7 {[%clk 0:01:07.1]} 29. Ke3
{[%clk 0:01:22]} 29... Kd7 {[%clk 0:01:00.7]} 30. Kd4 {[%clk 0:01:22.1]} 30...
Rc7 {[%clk 0:00:59.6]} 31. Rg1 {[%clk 0:01:16]} 31... g6 {[%clk 0:00:47.2]} 32.
h4 {[%clk 0:01:16]} 32... Kc6 {[%clk 0:00:47.5]} 33. Rc1 {[%clk 0:01:14.7]}
33... f6 {[%clk 0:00:44.9]} 34. a3 {[%clk 0:01:09]} 34... Rd7+ {[%clk
0:00:43.4]} 35. Ke3 {[%clk 0:01:08.8]} 35... a5 {[%clk 0:00:40]} 36. h5 {[%clk
0:01:01.5]} 36... gxh5 {[%clk 0:00:34.8]} 37. Rh1 {[%clk 0:01:00.7]} 37... Kxc5
{[%clk 0:00:33.6]} 38. Rxh5+ {[%clk 0:01:00.6]} 38... Kc4 {[%clk 0:00:34]} 39.
Rh6 {[%clk 0:01:00]} 39... Rf7 {[%clk 0:00:29.3]} 40. e5 {[%clk 0:00:59]} 40...
fxe5 {[%clk 0:00:28]} 41. fxe5 {[%clk 0:00:59.2]} 41... Re7 {[%clk 0:00:27.3]}
42. Ke4 {[%clk 0:00:58]} 42... b4 {[%clk 0:00:23.1]} 43. axb4 {[%clk 0:00:57.2]}
43... axb4 {[%clk 0:00:24]} 44. Rh1 {[%clk 0:00:56.3]} 44... Kc3 {[%clk
0:00:20.5]} 45. Rc1+ {[%clk 0:00:56]} 45... Kb2 {[%clk 0:00:20.6]} 46. Rc6
{[%clk 0:00:55.2]} 46... b3 {[%clk 0:00:21.1]} 47. Kf4 {[%clk 0:00:54.4]} 47...
Kb1 {[%clk 0:00:20.1]} 48. Kg5 {[%clk 0:00:54.5]} 48... b2 {[%clk 0:00:20]} 49.
Kf6 {[%clk 0:00:53.1]} 49... Rb7 {[%clk 0:00:20.7]} 50. Kxe6 {[%clk 0:00:51.1]}
50... Ka2 {[%clk 0:00:19.6]} 51. Ra6+ {[%clk 0:00:50.7]} 51... Kb3 {[%clk
0:00:19.1]} 0-1

[Event "Early-Titled-Tuesday-Blitz-April-23-2024"]
[Site "Chess.com"]
[Date "2024.04.23"]
[Round "7"]
[White "Rakhmanov_Aleksandr"]
[Black "shimastream"]
[Result "0-1"]
[WhiteElo "2870"]
[BlackElo "3053"]
[TimeControl "180+1"]
[EndTime "9:19:46 PDT"]
[Termination "shimastream won on time"]

1. c4 {[%clk 0:03:00.9]} 1... b6 {[%clk 0:03:00]} 2. Nc3 {[%clk 0:03:00.7]} 2...
Bb7 {[%clk 0:03:00.7]} 3. d4 {[%clk 0:03:00.8]} 3... Nf6 {[%clk 0:03:01]} 4. e3
{[%clk 0:03:00.8]} 4... e6 {[%clk 0:03:01.3]} 5. Nf3 {[%clk 0:03:00.3]} 5... Bb4
{[%clk 0:02:59.9]} 6. Bd2 {[%clk 0:02:57.6]} 6... O-O {[%clk 0:02:58.2]} 7. Bd3
{[%clk 0:02:56.6]} 7... d5 {[%clk 0:02:54.3]} 8. cxd5 {[%clk 0:02:55.6]} 8...
exd5 {[%clk 0:02:55.2]} 9. O-O {[%clk 0:02:50.8]} 9... Bd6 {[%clk 0:02:55.3]}
10. Ne5 {[%clk 0:02:49]} 10... c5 {[%clk 0:02:55.2]} 11. f4 {[%clk 0:02:46.8]}
11... Nc6 {[%clk 0:02:55.4]} 12. Rc1 {[%clk 0:02:31.1]} 12... Rc8 {[%clk
0:02:54]} 13. Be1 {[%clk 0:02:19.5]} 13... cxd4 {[%clk 0:02:48]} 14. Nxc6 {[%clk
0:02:12.3]} 14... Bxc6 {[%clk 0:02:48.9]} 15. exd4 {[%clk 0:02:12.3]} 15... Ne4
{[%clk 0:02:16.6]} 16. Bxe4 {[%clk 0:01:57]} 16... dxe4 {[%clk 0:02:17.5]} 17.
d5 {[%clk 0:01:57.3]} 17... Bc5+ {[%clk 0:02:04.9]} 18. Kh1 {[%clk 0:01:56.1]}
18... Bb7 {[%clk 0:01:58.6]} 19. f5 {[%clk 0:01:46.5]} 19... Re8 {[%clk
0:01:53.4]} 20. Qg4 {[%clk 0:01:33.1]} 20... e3 {[%clk 0:01:35.7]} 21. Bh4
{[%clk 0:01:07.4]} 21... Qd6 {[%clk 0:01:31.2]} 22. Bg3 {[%clk 0:00:54.2]} 22...
Qd7 {[%clk 0:01:24.9]} 23. b4 {[%clk 0:00:37.2]} 23... Bf8 {[%clk 0:01:17.8]}
24. Ne4 {[%clk 0:00:30.4]} 24... Kh8 {[%clk 0:01:17.5]} 25. Rxc8 {[%clk
0:00:20]} 25... Bxc8 {[%clk 0:01:17.5]} 26. d6 {[%clk 0:00:18.5]} 26... Bb7
{[%clk 0:01:14.8]} 27. Ng5 {[%clk 0:00:18.5]} 27... h6 {[%clk 0:01:07.6]} 28.
Qh5 {[%clk 0:00:18.7]} 28... Kg8 {[%clk 0:01:07.5]} 29. Nf3 {[%clk 0:00:09.6]}
29... Qb5 {[%clk 0:00:56.2]} 30. Re1 {[%clk 0:00:08.5]} 30... Bc8 {[%clk
0:00:44.6]} 31. Nd4 {[%clk 0:00:04.1]} 31... Qd5 {[%clk 0:00:42.9]} 32. Qh4
{[%clk 0:00:01.9]} 32... Bxd6 {[%clk 0:00:39.1]} 33. Bxd6 {[%clk 0:00:01.7]}
33... Qxd6 {[%clk 0:00:40]} 34. a3 {[%clk 0:00:01.3]} 34... Qe5 {[%clk
0:00:36.2]} 35. Nf3 {[%clk 0:00:01.1]} 35... Qxf5 {[%clk 0:00:35.9]} 36. h3
{[%clk 0:00:01.7]} 36... Qd3 {[%clk 0:00:35]} 37. Qf4 {[%clk 0:00:01.5]} 37...
Qc3 {[%clk 0:00:32.6]} 38. Kh2 {[%clk 0:00:01.2]} 38... e2 {[%clk 0:00:32.2]}
0-1

[Event "Early-Titled-Tuesday-Blitz-April-23-2024"]
[Site "Chess.com"]
[Date "2024.04.23"]
[Round "7"]
[White "Mops_2004"]
[Black "RandomNoob04"]
[Result "1-0"]
[WhiteElo "2897"]
[BlackElo "2669"]
[TimeControl "180+1"]
[EndTime "9:19:47 PDT"]
[Termination "Mops_2004 won by checkmate"]

1. g3 {[%clk 0:03:00.9]} 1... Nf6 {[%clk 0:02:58.4]} 2. Bg2 {[%clk 0:03:00.1]}
2... d5 {[%clk 0:02:58.7]} 3. f4 {[%clk 0:03:00]} 3... c5 {[%clk 0:02:56]} 4.
Nf3 {[%clk 0:03:00.1]} 4... Nc6 {[%clk 0:02:56.5]} 5. O-O {[%clk 0:03:00.4]}
5... Bg4 {[%clk 0:02:54.9]} 6. Ne5 {[%clk 0:02:52.2]} 6... e6 {[%clk 0:02:26]}
7. Nxg4 {[%clk 0:02:43]} 7... Nxg4 {[%clk 0:02:26.9]} 8. e4 {[%clk 0:02:38.2]}
8... Nf6 {[%clk 0:02:27.2]} 9. exd5 {[%clk 0:02:30.9]} 9... exd5 {[%clk
0:02:27.2]} 10. g4 {[%clk 0:02:22.4]} 10... Be7 {[%clk 0:02:25.8]} 11. g5 {[%clk
0:02:22.1]} 11... Ng8 {[%clk 0:01:59.8]} 12. Nc3 {[%clk 0:02:16.3]} 12... d4
{[%clk 0:01:59.3]} 13. Nd5 {[%clk 0:02:14.8]} 13... h6 {[%clk 0:01:56.6]} 14.
Qf3 {[%clk 0:01:50.5]} 14... Bd6 {[%clk 0:01:42.5]} 15. h4 {[%clk 0:01:10.5]}
15... Nge7 {[%clk 0:01:40.7]} 16. Nxe7 {[%clk 0:01:09.8]} 16... Qxe7 {[%clk
0:01:39.3]} 17. d3 {[%clk 0:00:42]} 17... hxg5 {[%clk 0:01:35.2]} 18. hxg5
{[%clk 0:00:40.5]} 18... O-O-O {[%clk 0:01:30.7]} 19. Bd2 {[%clk 0:00:40.4]}
19... Rh4 {[%clk 0:01:23.7]} 20. Bh3+ {[%clk 0:00:33.5]} 20... Kb8 {[%clk
0:01:23.1]} 21. Rae1 {[%clk 0:00:34.1]} 21... Qc7 {[%clk 0:01:21.1]} 22. Bg2
{[%clk 0:00:22.9]} 22... Rdh8 {[%clk 0:01:13.6]} 23. Re4 {[%clk 0:00:19.7]}
23... Nb4 {[%clk 0:01:04]} 24. c3 {[%clk 0:00:17]} 24... Nd5 {[%clk 0:00:59.4]}
25. cxd4 {[%clk 0:00:15.4]} 25... Nxf4 {[%clk 0:00:57]} 26. Bxf4 {[%clk
0:00:12.9]} 26... cxd4 {[%clk 0:00:39.4]} 27. Rxd4 {[%clk 0:00:13.1]} 27... Bxf4
{[%clk 0:00:36.5]} 28. Rxf4 {[%clk 0:00:14]} 28... Qb6+ {[%clk 0:00:36.1]} 29.
d4 {[%clk 0:00:11.6]} 29... R4h5 {[%clk 0:00:32]} 30. Qg3 {[%clk 0:00:10.3]}
30... Ka8 {[%clk 0:00:31.3]} 31. Rxf7 {[%clk 0:00:07.3]} 31... a5 {[%clk
0:00:29]} 32. Rxb7 {[%clk 0:00:06.5]} 32... Qxd4+ {[%clk 0:00:28]} 33. Qf2
{[%clk 0:00:06.8]} 33... Qg4 {[%clk 0:00:14.7]} 34. Qa7# {[%clk 0:00:06.2]} 1-0